Cogmind - Beta 16 @@@ ROGUE MODE // 2025.10.30 @ 17:12:02 Player: puppuppit Result: Destroyed by as-36868 with Assembled Blade Performance ------------- Evolutions (0) 0 Regions Visited (2) 400 Robots Destroyed (17) 85 Value Destroyed (260) 260 Prototype IDs (0) 0 Alien Tech Used (0) 0 Bonus (0) 0 TOTAL SCORE: 745 Bonus ------- None Cogmind --------- Core Integrity 0/250 Matter 249/300 Energy 100/100 System Corruption 2% Temperature Cool (0) Movement Core (50) Location -10/Mines Parts ------- > --- POWER (1) -------- (None) > --- PROPULSION (2) --- (None) > --- UTILITY (2) ------ (None) > --- WEAPON (2) ------- (None) > --- INVENTORY (5) ---- Medium Matter Pod (0) Medium Matter Pod (0) Peak State ------------ > --- POWER ------------ Light Nuclear Core > --- PROPULSION ------- Light Treads Light Treads > --- UTILITY ---------- Small Storage Unit Improved Terrain Scanner > --- WEAPON ----------- Assault Rifle Assault Rifle > --- INVENTORY -------- Small Matter Pod Medium Matter Pod Medium Matter Pod Terrain Scan Processor Seismic Detector Light Assault Rifle Light Assault Rifle [Rating: 11] Favorites ----------- Power Ion Engine Engine Ion Engine Power Core Light Nuclear Core Propulsion Light Treads Treads Light Treads Wheel Compact Wheel Utility Improved Terrain Scanner Device Improved Terrain Scanner Storage Small Storage Unit Protection Light Armor Plating Weapon Assault Rifle Energy Gun Medium Laser Ballistic Gun Assault Rifle Build | -11 -10 -10 ------- Run | Yrd Mat Min Slots Evolved . | . . . Power . | . . . Propulsion . | . . . Utility . | . . . Weapon . | . . . Parts Attached 17 | 10 6 1 Power 3 | 1 2 . Engine 2 | 1 1 . Core 1 | . 1 . Reactor . | . . . Propulsion 4 | 4 . . Treads 2 | 2 . . Leg . | . . . Wheel 2 | 2 . . Hover . | . . . Flight . | . . . Utility 5 | 2 2 1 Device 3 | 1 1 1 Storage 1 | 1 . . Processor . | . . . Hackware . | . . . Protection 1 | . 1 . Artifact . | . . . Weapon 5 | 3 2 . Energy Gun 1 | 1 . . Energy Cannon . | . . . Ballistic Gun 4 | 2 2 . Ballistic Cannon . | . . . Launcher . | . . . Special Weapon . | . . . Impact Weapon . | . . . Slashing Weapon . | . . . Piercing Weapon . | . . . Special Melee Weapon . | . . . Unidentified Prototypes . | . . . Parts Lost 7 | . 5 2 Power 1 | . 1 . Propulsion . | . . . Utility 3 | . 1 2 Weapon 3 | . 3 . Highest Loss Streak 3 | . 3 2 To Critical Strikes . | . . . Average Backups 5 | 4 6 2 Power . | . . . Propulsion . | 1 . . Utility 3 | . 4 2 Weapon . | . . . Tool/Special . | . . . Unused Backups 5 | . 2 3 Power 1 | . 1 . Propulsion . | . . . Utility 4 | . 1 3 Weapon . | . . . Tool/Special . | . . . Average Slot Usage (%) 78 | . 90 25 Engine 5 | . 7 . Core 3 | . 4 . Treads 21 | . 26 . Device 15 | . 12 25 Storage 11 | . 13 . Ballistic Gun 18 | . 22 . Peak Build Rating 11 | 9 11 4 Average Rating 8 | 7 9 3 On Entrance 3 | . 9 . Avg Prop Armor Cover (%) . | . . . Naked Turns 11 | . 7 4 Heaviest Build 15 | 14 15 2 Greatest Support 40 | 40 40 3 Greatest Overweight (x) 4 | . 4 . Average Overweight (x) . | . . . Largest Inventory Capacity 8 | 8 8 5 Average Capacity 7 | 7 7 5 Most Carried 8 | 7 8 4 Average Carried 5 | 4 6 2 Final Capacity 8 | 8 5 5 Final Carried 7 | 7 5 2 Class Distribution -------------------- 100% | Mutant Dominant Class ---------------- Mutant | -10/Materials Mutant | -10/Mines Resources | -11 -10 -10 ----------- Run | Yrd Mat Min Matter Collected 686 | 390 296 . Remotely . | . . . Salvage Created 554 | 213 341 . Parts 46 | 20 26 . Haulers Intercepted . | . . . Recyclers Shooed 4 | . 4 . Parts Field Recycled . | . . . Retrieved Matter . | . . . Parts Self-Destructed . | . . . Prevented . | . . . Parts Restored . | . . . Kills | -11 -10 -10 ------- Run | Yrd Mat Min Combat Hostiles Destroyed 8 | . 8 . Guns 8 | . 8 . Classes Destroyed 6 | 3 3 . Worker 2 | 2 . . Builder 1 | . 1 . Tunneler 4 | 4 . . Recycler 2 | 1 1 . Swarmer 3 | . 3 . Grunt 5 | . 5 . Best Kill Streak 4 | 4 3 . Combat Bots Only 2 | . 2 . Max Kills in Single Turn 2 | 2 1 . Gunslinging . | . . . Exploded . | . . . Melee . | . . . Uniques/NPCs Destroyed . | . . . Combat | -11 -10 -10 -------- Run | Yrd Mat Min Hostile Shots Fired 128 | . 119 9 Missed 29 | . 29 . Hits 99 | . 90 9 Melee 3 | . . 3 Projectile 96 | . 90 6 Critical Strikes 3 | . 2 1 Damage Taken 1018 | . 844 174 Core 278 | . 140 138 Absorbed by Shields . | . . . Core Remaining (%) 100 | 100 . . Volleys Fired 76 | 10 66 . Largest 2 | 2 2 . Hottest 40 | 40 40 . Shots Fired 134 | 20 114 . Gun 134 | 20 114 . Cannon . | . . . Launcher . | . . . Special . | . . . Kinetic 134 | 20 114 . Thermal . | . . . Explosive . | . . . Electromagnetic . | . . . Robot Hit Streak 11 | 11 7 . Robot Miss Streak 3 | 2 3 . Penetration Max . | . . . Secondary Targets . | . . . Shots Hit Robots 85 | 13 72 . Core Hits 33 | 9 23 1 Critical Kills . | . . . Critical Parts Destroyed 1 | . 1 . Critical Strikes 1 | . 1 . Destroy 1 | . 1 . Melee Attacks . | . . . Impact . | . . . Slashing . | . . . Piercing . | . . . Sneak Attacks . | . . . Combat Hostiles . | . . . Follow-up Attacks . | . . . Damage Inflicted 983 | 153 805 25 Guns 956 | 153 803 . Cannons . | . . . Explosions . | . . . Melee . | . . . Ramming 27 | . 2 25 Kinetic 956 | 153 803 . Thermal . | . . . Explosive . | . . . Electromagnetic . | . . . Impact . | . . . Slashing . | . . . Piercing . | . . . Highest Corruption 2 | . . 2 Average Corruption 2 | . . 2 Corruption Purged . | . . . Corruption Blocked . | . . . Overload Shots . | . . . Overflow Damage . | . . . Projectiles . | . . . Explosions . | . . . Melee . | . . . Knockbacks . | . . . Impact . | . . . Kinetic . | . . . Secondary . | . . . Self-Inflicted Damage 10 | . . 10 Shots . | . . . Rammed 12 | . 2 10 Targets Rammed 12 | . 2 10 Kicked . | . . . Crushed . | . . . Highest Temperature 27 | . 27 . Average Temperature 7 | . 7 . Received Heat Transfer 231 | . 231 . Siege Activations . | . . . Martial Activations . | . . . Shielding Activations . | . . . Robots Disrupted . | . . . Combat Hostiles . | . . . Robots Corrupted . | . . . Combat Hostiles . | . . . Parts Fried . | . . . Impact Corruptions . | . . . Robots Melted . | . . . Combat Hostiles . | . . . Parts Melted . | . . . Heat Transferred . | . . . Parts Sabotaged . | . . . Parts Stolen . | . . . Parts Stripped . | . . . Power Chain Reactions . | . . . Alert | -11 -10 -10 ------- Run | Yrd Mat Min Maximum Alert Level . | . . . Low Security (%) 100 | 100 100 100 Level 1 . | . . . Level 2 . | . . . Level 3 . | . . . Level 4 . | . . . Level 5 . | . . . High Security . | . . . Max Security . | . . . Peak Influence 55 | 15 55 5 Initial 5 | . . 5 Average 8 | 2 11 . Influence Increases 265 | 35 230 . Destroy 0b10 Robot/C 160 | . 160 . Destroy 0b10 Robot/NC 45 | 35 10 . Destroy Leader 30 | . 30 . Lose Combat Pursuer 30 | . 30 . Influence Decreases 265 | 35 216 14 Entered New Map 9 | . . 9 Time Decay 206 | 35 166 5 Lost Part 50 | . 50 . Squads Dispatched 2 | . 2 . Investigation . | . . . Extermination . | . . . Reinforcement 2 | . 2 . Assault . | . . . Garrison . | . . . Intercept . | . . . Searches Triggered . | . . . Construction Impeded . | . . . Haulers Reinforced . | . . . Active Scanning Responses . | . . . Cargo Convoy Interrupts . | . . . Stealth | -11 -10 -10 --------- Run | Yrd Mat Min Distress Signals . | . . . Communications Jammed . | . . . Distress Signals . | . . . Times Spotted 25 | . 20 5 Peak Tracking Total 6 | . 5 6 Tactical Retreats 2 | . 1 1 Traps | -11 -10 -10 ------- Run | Yrd Mat Min Traps Triggered 4 | . 4 . Indirectly . | . . . Trap Hack Attempts . | . . . Triggered . | . . . Disarmed . | . . . Reprogrammed . | . . . Reused . | . . . Traps Extracted . | . . . Installed . | . . . Triggered . | . . . Machines | -11 -10 -10 ---------- Run | Yrd Mat Min Machines Disabled . | . . . Max in Single Turn . | . . . Machines Repaired . | . . . Machines Dismantled . | . . . Machines Sabotaged . | . . . Overloaded Fab Kills . | . . . Hacking | -11 -10 -10 --------- Run | Yrd Mat Min Machines Accessed 4 | . 4 . Terminals 4 | . 4 . Fabricators . | . . . Repair Stations . | . . . Recycling Units . | . . . Scanalyzers . | . . . Garrison Access . | . . . Total Hacks 10 | . 10 . Successful 6 | . 6 . Failed 4 | . 4 . Catastrophic 1 | . 1 . Database Lockouts . | . . . Manual 10 | . 10 . Terminals 10 | . 10 . Fabricators . | . . . Repair Stations . | . . . Recycling Units . | . . . Scanalyzers . | . . . Garrison Access . | . . . Terminal Hacks . | . . . Fabricator Hacks . | . . . Repair Station Hacks . | . . . Recycling Unit Hacks . | . . . Scanalyzer . | . . . Garrison Access Hacks . | . . . Unauthorized Hacks 6 | . 6 . Terminals 6 | . 6 . Botnet 3 | . 3 . Skim 3 | . 3 . Fabricators . | . . . Repair Stations . | . . . Recycling Units . | . . . Scanalyzers . | . . . Garrison Access . | . . . Data Cores Recovered . | . . . Used . | . . . Hacking Detections 4 | . 4 . Full Trace Events . | . . . Feedback Events . | . . . Feedback Blocked . | . . . Robot Schematics Acquired . | . . . Robots Built . | . . . Authchips . | . . . Time . | . . . Total Robot Build Rating . | . . . Part Schematics Acquired . | . . . Parts Built . | . . . Authchips . | . . . Time . | . . . Total Part Build Rating . | . . . Part Studies Acquired . | . . . Parts Repaired . | . . . Time . | . . . Parts Recycled . | . . . Recycled Matter . | . . . Retrieved Matter . | . . . Retrieved Components . | . . . Parts Scanalyzed . | . . . Part Schematics Acquired . | . . . Parts Damaged . | . . . Bothacking | -11 -10 -10 ------------ Run | Yrd Mat Min Used RIF Installer . | . . . Robots Hacked . | . . . Non-combat . | . . . Combat . | . . . Robot Hacks Applied . | . . . Relay Couplers Released . | . . . Fabnet Peak Effective % . | . . . Robots Rewired . | . . . Allies Hacked . | . . . Hacks Repelled . | . . . Allies | -11 -10 -10 -------- Run | Yrd Mat Min Total Allies . | . . . Largest Group . | . . . Highest-Rated Group . | . . . Highest-Rated Ally . | . . . Total Orders . | . . . Ally Attacks . | . . . Total Damage . | . . . Kills . | . . . Allies Corrupted . | . . . Allies Melted . | . . . Intel | -11 -10 -10 ------- Run | Yrd Mat Min Active Infowar (turns) 811 | 93 585 133 Terrain 811 | 93 585 133 Seismic 132 | . . 132 Robot Analysis Total . | . . . Derelict Logs Recovered . | . . . Drone Launches . | . . . Drone Recoveries . | . . . Exploration | -11 -10 -10 ------------- Run | Yrd Mat Min Turns Passed 940 | 163 640 137 Spaces Moved 437 | 81 274 82 Core 100 | 1 17 82 Treads 316 | 59 257 . Legs . | . . . Wheels 21 | 21 . . Hover . | . . . Flight . | . . . Fastest Speed 50 | 50 50 50 Average Speed 132 | 141 154 50 Slowest Speed 250 | 160 250 50 Overloaded Moves . | . . . Propulsion Burnouts . | . . . Robots Hopped . | . . . Potential Cave-ins . | . . . Cave-ins Triggered . | . . . Exploration Rate (%) 21 | 4 46 13 Regions Visited 2 Branch Regions 1 Pre-discovered Areas . | . . . Known Exits Taken . | . . . Unknown Exits Taken 2 | 1 1 . Scrap Searched . | . . . Spaces Dug . | . . . Terrain Destroyed . | . . . Melee . | . . . Projectile . | . . . AOE . | . . . Terrain Rammed . | . . . Walls Destroyed . | . . . Machines Disabled . | . . . Actions | -11 -10 -10 --------- Run | Yrd Mat Min Total 669 | 107 384 178 Wait 96 | . 13 83 Move 435 | 80 273 82 Hop . | . . . Pick Up 14 | 6 8 . Fast Attach 17 | 8 9 . Attach 6 | . 4 2 Detach 1 | 1 . . Swap 5 | 2 3 . Drop 7 | . 6 1 Fire 76 | 10 66 . Melee . | . . . Ram 10 | . . 10 Kick . | . . . Crush 2 | . 2 . Escape Stasis . | . . . Rewire . | . . . Trap . | . . . Miscellaneous . | . . . Route ------- -11/Scrapyard -10/Materials (discovered 2 exits: [*Min x2]) -10/Mines History --------- Turn | Location | Event 7 | -11/Scrapyard | Discovered new exit (range 16) 164 | -11/Scrapyard | Entered Materials 305 | -10/Materials | Build established: Mutant 447 | -10/Materials | Discovered new exit (range 10) 649 | -10/Materials | Lost 3 parts (3w) 706 | -10/Materials | Discovered new exit (range 8) 797 | -10/Materials | Released all parts (6) 798 | -10/Materials | Core integrity fell below 50% 804 | -10/Materials | Entered Mines 814 | -10/Mines | Assembled infested the area 819 | -10/Mines | Assisted by a Guerilla fighting off Assembled 881 | -10/Mines | Met a Derelict bent on vengeance 936 | -10/Mines | Core integrity fell below 20% 941 | -10/Mines | Destroyed by as-36868 with Assembled Blade Last Messages --------------- 00806_ Dropped Sml. Matter Pod. 00808_ K-01 Serf collects debris. 00814_ ALERT: Infestation in the mines, dispatching Demolisher response squad. 00819_ A derelict emerges from the shadows: "You need to get out of here! I've been tracking a group of Assembled to figure out where they're coming from, and they're closing on this area, come on!" 00853_ K-01 Serf collects debris. 00882_ as-66452 sneak attacks. 00882_ UT-UAL(h): "I'll hold them off! Go on ahead or try to find another way!" 00882_ HV Slug penetrates Wall. 00929_ Slammed into as-36868. 00932_ Slammed into as-76033. 00937_ Imp. Terrain Scanner destroyed. 00937_ Seismic Detector destroyed. 00937_ Slammed into as-76033. 00939_ Destabilizing: System corrupted (+2). 00940_ Slammed into as-76033. Map ----- +----------------------------------------------------+ | ????????????????????????????????#?#??????????? | | ?????????????????????? ???????? ??#?#????????? | | ?????????????????????#???????????????????????? | | ????????????????????? ???????????????????????? | | ??????????????????????????#????????????#?????? | | ??????????????????? ?????????????????#?#?????? | | ????????????????????????#????#?#?????????????? | | ???????????????#???????????#??#######?#??????? | | ?????????????????????????????## #?????#??? | | ????????????? ????? #?????????# #?????#??? | | ????????????????????????####??# #?#??????? | | ?????????????????????????% #??# #????????? | | ?????????????????????#???# "??# ! #????????? | | ???????????????????????#?# #### #????????? | | ?????????????????????????# #??#?????? | | ??????????? ????#???????### ## ##???????? | | ????????????????????? ?????# ## #????????? | | ?????????????????????? ???## #### ###????????? | | ????????????#???#??????? ?## #??# #??????????? | | ?????????????#?#???????????# #??# #???#??????? | | ?????????????????? ??????#?# #### #??????????? | | ?????????????#??????????#### #??????????? | | ?????????????#?????#????# ######?????#????? | | ????????????????????????# ####???????#???????? | | ????????????????????????#a#?????#????????????? | | ????????????????????????#@#??????????????????? | | ????????????? ?????????#a#??????#???????????? | | ????????????????????#???# ##???#?????#???????? | | ????????????????????????# ######?????????????? | | ????????????????????????# ## #?????????????? | | ????????????????"???????# ## ##????????????? | | ????????????????????????# ## #####????????? | | ?????????????????? ?????# ## ##???????? | | ????????????????????????# ## #???????? | | ??????????????????????#?# ## #???????? | | ????????????????????????# ## #????????? | | ?????????????#??????????# ####????????? | | ??????????????????#????###### ##?#######???? | | ???????????????????????????## #??# #???? | | ??????????????????????????## ##??# #???? | | ????????????????????????#?# ##### #???? | | ??????????????????????????# """ #???? | | ??????????????????????????# ##### """ #?#?? | | ??????????????????????????# #??# """ #???? | | ??????????????????????????## #??# #???? | | ???????????????????????????# #??#######???? | | ???????????????????????????## ##????????????? | | ????????????????????????????####?????????????? | | ???????????????????????????????##????????????? | | ???????????????????????????????#?????????????? | +----------------------------------------------------+ Best States ------------- Heat Dissipation 25 Energy Generation 14 Energy Capacity 250 Matter Stores 300 Matter Capacity 300 Sight Range 16 Terrain Scan Range 16 Terrain Scan Density 10 Armor Coverage 150 Evasion (%) 50 Recoil Reduction 2 Item Schematics ----------------- None Robot Schematics ------------------ None Fabricated ------------ Nothing Repaired ---------- Nothing Studied --------- None Alien Tech Used ----------------- None Achievements -------------- DATA ERROR: Steam Global Achievement% For Emergencies Only Live, Flee, And Rebuild Organ Harvest There's More Where That Came From Challenges ------------ None Game ------ Seed SmartbombSwordPendant Manual? 0 Play Time 00:13:22 Cumulative 604.3 hours Start 2025.10.30 @ 16:51:01 End 2025.10.30 @ 17:12:02 Sessions 1 Manual Loads 0 Difficulty Rogue Special Mode None Game No. 305 Rogue 305 Adventurer 0 Explorer 0 Win Type - Total 7 Types 3/0/2/1/0/0/0/0/0/1 Lore% 87 Gallery% 78 Achievement% 38 Wizard Run 0 Options --------- Layout 2 ASCII 0 Keyboard 1 Movement Vi Keybinds 0 Fullscreen 2 Font 16/Tamsyn Map View 55x47 Zoom Use 0% Tactical HUD 1 Map Filters NONE Filters NONE Steam 0 RUN: a80b47de-94cb-4d74-a9ad-25501003d64c